{"text_format":"1","workbook":"xlsx","n_sheets":3,"sheets":["Hoja1","Hoja2","Hoja3"],"not_rendered":{"charts":0,"images":0,"macros":0,"external_links":0,"defined_names":0,"comments":0,"pivot_tables":0},"unopened":[],"bounds":{"document_bytes":16777216,"sheet_cells":100000,"rows_first":2000,"rows_last":500,"rows_between":2000,"halvings":0,"cell_chars":16384,"cell_head_chars":4096},"cells_cut":0,"cells_raw":0,"read":"whole","date_system":"1900"}

{"sheet":"Hoja1","index":0,"n_rows":40,"n_cols":16,"rows_kept":40,"cut":false,"hidden":false,"merged":[[0,1,0,15],[2,1,2,15]]}
[null,"INSTITUTO TECNOLÓGICO SUPERIOR DE PEROTE"]
[]
[null,"VIÁTICOS EJERCIDOS EN EL MES DE: OCTUBRE 2014"]
[]
["ÁREA","OBJETO O MOTIVO DE LA COMISIÓN","SERV. PÚB. COMISIONADOS","LUGAR DE COMISIÓN","DESTINO DE LA COMISIÓN","FECHA DE INICIO","FECHA DE TERMINO","ORIGEN DEL RECURSO","ALIMENTOS","HOSPEDAJE","PASAJES","PEAJES","TRASLADOS LOCALES","COMBUSTIBLES","IMPORTE EJERCIDO","RESPONSABLE QUE PROPORCIONA LA INFORMACIÓN"]
["ACAD.","ASISITR A LA REUNION NACIONAL DE INVESTIGACION DEL INAFAP",1,"NAC.","MERIDA, YUCATAN","2014-10-06","2014-10-09","FED.",{"$f":"1440+730","v":2170},null,2480,null,350,null,{"$f":"SUM(I6:N6)","v":5000},"REC. FINANCIEROS"]
["ADMO.","ASISTIR A COMPRAR MATERIAL DE COMPUTO",1,"NAC.","MEXICO, D.F.","2014-10-03","2014-10-03","FED.",360,null,null,null,null,null,{"$f":"SUM(I7:N7)","v":360},"REC. FINANCIEROS"]
["ACAD.","ASISTIR A REUNION DE TRABAJO",1,"EDO.","XALAPA, VER.","2014-10-06","2014-10-06","FED.",360,null,null,212,null,200,772,"REC. FINANCIEROS"]
["ACAD.","ASISTIR A INEGI A SOLICITAR INFORMACION",1,"EDO.","XALAPA, VER.","2014-10-07","2014-10-07","FED.",600,null,232,null,200,null,1032,"REC. FINANCIEROS"]
["PYV","ASISTIR A REUNION DE TRABAJO SOBRE INVESTIGACION",1,"EDO.","CORDOBA, VER.","2014-10-07","2014-10-08","FED.",1440,850,null,200,null,600,3090,"REC. FINANCIEROS"]
["PYV","ASISTIR A LA DET A ENTREGAR CERTIFICADOS Y RECOGER TITULOS",1,"EDO.","XALAPA, VER.","2014-10-08","2014-10-08","FED.",300,null,null,212,null,200,712,"REC. FINANCIEROS"]
["ACAD.","ASISTIR A REUNION DE TRABAJO",1,"EDO.","VERACRUZ, VER.","2014-10-08","2014-10-13","FED.",600,700,null,514,null,500,2314,"REC. FINANCIEROS"]
["ACAD.","ASISTIR AL CONCURSO DE CIENCIAS BASICAS",1,"NAC.","AGUAS CALIENTES","2014-10-13","2014-10-17","FED.",1300,null,null,null,null,null,1300,"REC. FINANCIEROS"]
["PYV","ASISTIR A REUNION DE TRABAJO",1,"EDO.","XALAPA, VER.","2014-10-11","2014-10-11","FED.",360,null,null,212,null,200,772,"REC. FINANCIEROS"]
["ACAD.","ASISTIR A CONGRESO INTERNACIONAL \"SOBRE CALIDAD, INOCUIDAD Y FUNCIONALIDAD DE LOS ALIMENTOS EN LA INDUSTRIA\"",1,"EDO.","VERACRUZ, VER.","2014-10-17","2014-10-17","FED.",148,null,316,null,100,null,{"$f":"SUM(I15:N15)","v":564},"REC. FINANCIEROS"]
["PYV","ASISTIR A ENTREGA DE CARPETAS DE JUNTA DIRECTIVA",1,"EDO.","XALAPA, VER.","2014-10-14","2014-10-14","FED.",360,null,null,212,null,200,772,"REC. FINANCIEROS"]
["PYV","ASISTIR A LA REUNION DE MULTISITIOS",1,"NAC.","ACAPULCO, GUERRERO","2014-10-15","2014-10-18","FED.",null,null,6088.08,null,null,null,6088.08,"REC. FINANCIEROS"]
["PYV","ASISTIR A LA REUNION DE MULTISITIOS",1,"NAC.","ACAPULCO, GUERRERO","2014-10-15","2014-10-18","FED.",{"$f":"360*4","v":1440},3198,532,null,800,null,5970,"REC. FINANCIEROS"]
["ADMO.","ASISTIR A REUNION DE TRABAJO ",1,"EDO.","VERACRUZ, VER.","2014-10-18","2014-10-19","FED.",600,1250,null,634,null,500,2984,"REC. FINANCIEROS"]
["ACAD.","ASISTIR A CONGRESO INTERNACIONAL DE INFORMATICA, ROBOTICA Y MECANICA",1,"NAC.","MANZANILLO, COLIMA","2014-10-31","2014-11-02","FED.",3750,null,null,null,null,null,3750,"REC. FINANCIEROS"]
["ACAD.","ASISTIR A ENTREGA DE DOCUMENTACION",1,"NAC.","MEXICO, D.F.","2014-10-24","2014-10-24","FED.",218.5,null,712,null,269.5,null,1200,"REC. FINANCIEROS"]
["PYV","ASISTIR A ENTREGA DE DOCUMENTACION EN LA DET",1,"EDO.","XALAPA, VER.","2014-10-24","2014-10-24","FED.",300,null,null,212,null,200,712,"REC. FINANCIEROS"]
["ADMO.","ASISTIR A ENTREGA DE DOCUMENTACION EN DIFERENTES DEPENDENCIAS",1,"EDO.","XALAPA, VER.","2014-10-24","2014-10-24","FED.",660,null,null,212,null,200,1072,"REC. FINANCIEROS"]
["PYV","ASISTIR A REUNION DE TRABAJO EN LA DET",1,"EDO.","XALAPA, VER.","2014-10-25","2014-10-25","FED.",{"$f":"360*3+300","v":1380},null,null,212,null,400,1992,"REC. FINANCIEROS"]
["PYV","ASISTIR A TERCERA SESION ORDINARIA DE JUNTA DIRECTIVA",1,"EDO.","XALAPA, VER.","2014-10-27","2014-10-27","FED.",{"$f":"2640+1320","v":3960},null,null,1200,null,1696,6856,"REC. FINANCIEROS"]
["PYV","ASISTIR A EXPO FORESTAL",1,"NAC.","GUADALAJARA, JAL.","2014-10-28","2014-11-01","FED.",null,null,6297,null,null,null,6297,"REC. FINANCIEROS"]
["ACAD.","ASISTIR A EXPO FORESTAL",1,"NAC.","GUADALAJARA, JAL.","2014-10-28","2014-11-01","FED.",3600,null,1596,null,1050,null,6246,"REC. FINANCIEROS"]
["PYV","ASISTIR A CONCURSO DE DIBUJO INFANTIL DE CONAFOR",1,"EDO.","BANDERILLA, VER.","2014-10-28","2014-10-28","FED.",600,null,null,212,null,200,1012,"REC. FINANCIEROS"]
["ACAD.","ASISTIR A PARTICIPAR COMO JURADO DE EXAMEN DE GRADO",1,"EDO.","XALAPA, VER.","2014-10-28","2014-10-28","FED.",360,null,null,212,null,200,772,"REC. FINANCIEROS"]
["ACAD.","ASISTIR A REUNION DE COMITÉ DOCTORAL DE ALUMNO DE DOCTORADO EN INGENIERIA ",1,"EDO.","XALAPA, VER.","2014-10-29","2014-10-29","FED.",360,null,null,212,null,200,772,"REC. FINANCIEROS"]
[" ",null,null,null,null,null,null,null,null,null,null,null,null,null,0,"REC. FINANCIEROS"]
[null,null,null,null,null,null,null,null,null,null,null,null,null,null,0,"REC. FINANCIEROS"]
[]
[]
["PyV","DIRECCIÓN DE PLANEACIÓN Y VINCULACIÓN"]
["ACAD.","DIRECCIÓN ACADÉMICA"]
["SIND.","SINDICATO"]
["ADMO.","SUBDIRECCIÓN ADMINISTRATIVA"]
["FED. ","RECURSO FEDERAL"]
["I.P.","INGRESOS PROPIOS"]

{"sheet":"Hoja2","index":1,"n_rows":0,"n_cols":0,"rows_kept":0,"cut":false,"hidden":false,"merged":[]}

{"sheet":"Hoja3","index":2,"n_rows":0,"n_cols":0,"rows_kept":0,"cut":false,"hidden":false,"merged":[]}